[Event "*** SCC Grand Prix: Titled Tuesday Blitz"]
[Site "Chess.com"]
[Date "2020.08.11"]
[Round "7"]
[White "DariaVoit"]
[Black "ExtremeLearner"]
[Result "0-1"]
[WhiteElo "2484"]
[BlackElo "2366"]
[TimeControl "180+1"]
[EndTime "11:18:04 PDT"]
[Termination "ExtremeLearner won by checkmate"]

1. d4 {[%clk 0:03:00.9]} 1... Nf6 {[%clk 0:02:59]} 2. Nf3 {[%clk 0:03:00.7]}
2... g6 {[%clk 0:02:57.7]} 3. c4 {[%clk 0:03:00.7]} 3... Bg7 {[%clk 0:02:57.8]}
4. Nc3 {[%clk 0:02:59.4]} 4... O-O {[%clk 0:02:58.7]} 5. g3 {[%clk 0:02:58.6]}
5... d6 {[%clk 0:02:58.7]} 6. Bg2 {[%clk 0:02:59.1]} 6... c6 {[%clk 0:02:59.3]}
7. O-O {[%clk 0:02:59.6]} 7... Bf5 {[%clk 0:02:59.6]} 8. h3 {[%clk 0:02:57.8]}
8... Ne4 {[%clk 0:02:59.4]} 9. Bd2 {[%clk 0:02:53.3]} 9... Nxc3 {[%clk
0:02:57.8]} 10. Bxc3 {[%clk 0:02:54.2]} 10... Be4 {[%clk 0:02:58.3]} 11. Qd2
{[%clk 0:02:50.2]} 11... d5 {[%clk 0:02:52.3]} 12. c5 {[%clk 0:02:48.1]} 12...
Nd7 {[%clk 0:02:49]} 13. b4 {[%clk 0:02:47.8]} 13... a6 {[%clk 0:02:46.2]} 14.
a4 {[%clk 0:02:47.8]} 14... Bxf3 {[%clk 0:02:41.9]} 15. Bxf3 {[%clk 0:02:47.2]}
15... e5 {[%clk 0:02:42.8]} 16. e3 {[%clk 0:02:45.4]} 16... f5 {[%clk
0:02:38.7]} 17. b5 {[%clk 0:02:42.8]} 17... e4 {[%clk 0:02:31.8]} 18. Be2 {[%clk
0:02:41.8]} 18... g5 {[%clk 0:02:26.2]} 19. bxc6 {[%clk 0:02:39.3]} 19... bxc6
{[%clk 0:02:23.4]} 20. Rab1 {[%clk 0:02:39.1]} 20... f4 {[%clk 0:02:01.2]} 21.
Bg4 {[%clk 0:02:25]} 21... Nf6 {[%clk 0:01:55.7]} 22. Bf5 {[%clk 0:02:13.8]}
22... Rb8 {[%clk 0:01:40.2]} 23. exf4 {[%clk 0:02:10.3]} 23... gxf4 {[%clk
0:01:34.2]} 24. Qxf4 {[%clk 0:02:09.8]} 24... Rxb1 {[%clk 0:01:31.2]} 25. Rxb1
{[%clk 0:02:08.9]} 25... Nh5 {[%clk 0:01:27.9]} 26. Qg4 {[%clk 0:02:05]} 26...
Nf6 {[%clk 0:01:10.1]} 27. Qg5 {[%clk 0:01:58.3]} 27... Qe7 {[%clk 0:01:02.1]}
28. Rb6 {[%clk 0:01:48.9]} 28... h6 {[%clk 0:00:57.7]} 29. Qe3 {[%clk
0:01:40.6]} 29... Nd7 {[%clk 0:00:54.9]} 30. Bxd7 {[%clk 0:01:34.9]} 30... Qxd7
{[%clk 0:00:44.8]} 31. Kg2 {[%clk 0:01:22.7]} 31... Rf3 {[%clk 0:00:39.9]} 32.
Qe1 {[%clk 0:01:22.3]} 32... h5 {[%clk 0:00:30.6]} 33. Rxa6 {[%clk 0:01:10.6]}
33... h4 {[%clk 0:00:24]} 34. g4 {[%clk 0:01:10.9]} 34... Qf7 {[%clk 0:00:22.2]}
35. Rxc6 {[%clk 0:01:03.1]} 35... e3 {[%clk 0:00:15.3]} 36. Rc8+ {[%clk
0:00:37.9]} 36... Bf8 {[%clk 0:00:12.4]} 37. fxe3 {[%clk 0:00:31.4]} 37... Rg3+
{[%clk 0:00:11.8]} 38. Qxg3 {[%clk 0:00:26.3]} 38... hxg3 {[%clk 0:00:12.7]} 39.
Kxg3 {[%clk 0:00:27.1]} 39... Qf1 {[%clk 0:00:10.5]} 40. c6 {[%clk 0:00:21.1]}
40... Qg1+ {[%clk 0:00:09.3]} 41. Kf3 {[%clk 0:00:21.1]} 41... Qf1+ {[%clk
0:00:08.7]} 42. Kg3 {[%clk 0:00:21.1]} 42... Kg7 {[%clk 0:00:09]} 43. c7 {[%clk
0:00:14.4]} 43... Bd6+ {[%clk 0:00:09.2]} 44. Kh4 {[%clk 0:00:14.2]} 44... Qf6+
{[%clk 0:00:09.1]} 45. Kh5 {[%clk 0:00:14.4]} 45... Qh6# {[%clk 0:00:08.8]} 0-1

[Event "*** SCC Grand Prix: Titled Tuesday Blitz"]
[Site "Chess.com"]
[Date "2020.08.11"]
[Round "7"]
[White "alexrustemov"]
[Black "maximnovik"]
[Result "1-0"]
[WhiteElo "2644"]
[BlackElo "2463"]
[TimeControl "180+1"]
[EndTime "11:18:05 PDT"]
[Termination "alexrustemov won on time"]

1. d4 {[%clk 0:03:00.9]} 1... Nf6 {[%clk 0:02:57.6]} 2. Nf3 {[%clk 0:02:59.9]}
2... g6 {[%clk 0:02:57.2]} 3. c4 {[%clk 0:02:59.8]} 3... Bg7 {[%clk 0:02:57.2]}
4. Nc3 {[%clk 0:02:56.2]} 4... d5 {[%clk 0:02:57.2]} 5. Qb3 {[%clk 0:02:55.7]}
5... dxc4 {[%clk 0:02:56.8]} 6. Qxc4 {[%clk 0:02:56.6]} 6... O-O {[%clk
0:02:56.9]} 7. Bf4 {[%clk 0:02:57.2]} 7... Na6 {[%clk 0:02:57.3]} 8. Rd1 {[%clk
0:02:55.7]} 8... c5 {[%clk 0:02:54.7]} 9. dxc5 {[%clk 0:02:53.8]} 9... Qa5
{[%clk 0:02:54.2]} 10. Qa4 {[%clk 0:02:49.3]} 10... Qxc5 {[%clk 0:02:46.8]} 11.
e3 {[%clk 0:02:45.7]} 11... Qb6 {[%clk 0:02:26.7]} 12. Qb5 {[%clk 0:02:44.1]}
12... Qxb5 {[%clk 0:02:13.4]} 13. Bxb5 {[%clk 0:02:45]} 13... Nc5 {[%clk
0:02:13.1]} 14. Be5 {[%clk 0:02:32.6]} 14... a6 {[%clk 0:02:07.3]} 15. Be2
{[%clk 0:02:30.1]} 15... b5 {[%clk 0:01:48.6]} 16. Nd4 {[%clk 0:02:28.5]} 16...
Bb7 {[%clk 0:01:47.1]} 17. Bf3 {[%clk 0:02:13.9]} 17... Bxf3 {[%clk 0:01:43.8]}
18. gxf3 {[%clk 0:02:13.2]} 18... Rac8 {[%clk 0:01:31.7]} 19. Ke2 {[%clk
0:02:08.7]} 19... b4 {[%clk 0:01:29.3]} 20. Bxf6 {[%clk 0:02:04.1]} 20... bxc3
{[%clk 0:01:20.9]} 21. Bxg7 {[%clk 0:01:42.5]} 21... Kxg7 {[%clk 0:01:19.6]} 22.
b3 {[%clk 0:01:40.1]} 22... e5 {[%clk 0:00:56.8]} 23. Nc2 {[%clk 0:01:38.6]}
23... e4 {[%clk 0:00:42.3]} 24. Rd5 {[%clk 0:01:21.1]} 24... exf3+ {[%clk
0:00:35.8]} 25. Kxf3 {[%clk 0:01:22]} 25... Rfd8 {[%clk 0:00:30]} 26. Rhd1
{[%clk 0:01:21]} 26... Rxd5 {[%clk 0:00:29.8]} 27. Rxd5 {[%clk 0:01:21.9]} 27...
Kf6 {[%clk 0:00:21.8]} 28. Rd4 {[%clk 0:01:08.8]} 28... Ne6 {[%clk 0:00:16.6]}
29. Rd6 {[%clk 0:00:57.3]} 29... a5 {[%clk 0:00:15.6]} 30. Ke2 {[%clk 0:00:54]}
30... Rc5 {[%clk 0:00:11.6]} 31. Ra6 {[%clk 0:00:40.5]} 31... Rh5 {[%clk
0:00:11.2]} 32. Na3 {[%clk 0:00:25]} 32... Rd5 {[%clk 0:00:08.9]} 33. Ke1 {[%clk
0:00:17.9]} 33... Rd2 {[%clk 0:00:08.4]} 34. Nc4 {[%clk 0:00:16.2]} 34... Rxa2
{[%clk 0:00:08.3]} 35. Rxa5 {[%clk 0:00:16.6]} 35... Rc2 {[%clk 0:00:06.1]} 36.
Rd5 {[%clk 0:00:14.4]} 36... Ke7 {[%clk 0:00:04.6]} 37. b4 {[%clk 0:00:11.5]}
37... Ra2 {[%clk 0:00:03.8]} 38. Rd3 {[%clk 0:00:09.9]} 38... c2 {[%clk
0:00:02.6]} 39. Rc3 {[%clk 0:00:09.9]} 39... Ng5 {[%clk 0:00:01.6]} 40. Nd2
{[%clk 0:00:04.8]} 1-0

[Event "*** SCC Grand Prix: Titled Tuesday Blitz"]
[Site "Chess.com"]
[Date "2020.08.11"]
[Round "7"]
[White "kleinebeer98"]
[Black "Casablanca"]
[Result "0-1"]
[WhiteElo "2625"]
[BlackElo "2468"]
[TimeControl "180+1"]
[EndTime "11:18:05 PDT"]
[Termination "Casablanca won on time"]

1. e4 {[%clk 0:03:00.3]} 1... c5 {[%clk 0:03:00.1]} 2. Nf3 {[%clk 0:02:55.6]}
2... d6 {[%clk 0:02:58.5]} 3. d4 {[%clk 0:02:55.7]} 3... cxd4 {[%clk 0:02:57.7]}
4. Nxd4 {[%clk 0:02:56.6]} 4... Nf6 {[%clk 0:02:58.3]} 5. Nc3 {[%clk 0:02:56.7]}
5... g6 {[%clk 0:02:58.9]} 6. h3 {[%clk 0:02:56.1]} 6... Bg7 {[%clk 0:02:59.3]}
7. Bc4 {[%clk 0:02:56.2]} 7... O-O {[%clk 0:02:59.4]} 8. O-O {[%clk 0:02:56.3]}
8... Nc6 {[%clk 0:02:59.9]} 9. Nf3 {[%clk 0:02:56.1]} 9... a6 {[%clk 0:02:57.9]}
10. Bg5 {[%clk 0:02:55]} 10... h6 {[%clk 0:02:57.4]} 11. Bh4 {[%clk 0:02:54.4]}
11... b5 {[%clk 0:02:57]} 12. Bb3 {[%clk 0:02:52.4]} 12... Na5 {[%clk
0:02:53.7]} 13. e5 {[%clk 0:02:27.9]} 13... dxe5 {[%clk 0:02:45.6]} 14. Nxe5
{[%clk 0:02:28.8]} 14... Nxb3 {[%clk 0:02:45.1]} 15. axb3 {[%clk 0:02:21.1]}
15... Bb7 {[%clk 0:02:43.3]} 16. Qe2 {[%clk 0:02:13.2]} 16... Qc7 {[%clk
0:02:36.9]} 17. Bg3 {[%clk 0:02:06.6]} 17... Qb6 {[%clk 0:02:32.2]} 18. Rfe1
{[%clk 0:02:01.3]} 18... e6 {[%clk 0:02:27.2]} 19. Nd3 {[%clk 0:01:52.3]} 19...
Rfd8 {[%clk 0:02:25.5]} 20. Be5 {[%clk 0:01:51.9]} 20... Rac8 {[%clk 0:02:22.9]}
21. b4 {[%clk 0:01:43.5]} 21... Qc6 {[%clk 0:02:05.3]} 22. f3 {[%clk 0:01:42.6]}
22... Nh5 {[%clk 0:01:59.1]} 23. Bxg7 {[%clk 0:01:40.7]} 23... Qb6+ {[%clk
0:01:59.2]} 24. Kh2 {[%clk 0:01:32.4]} 24... Kxg7 {[%clk 0:01:54.4]} 25. Qe5+
{[%clk 0:01:25.9]} 25... Kg8 {[%clk 0:01:52.1]} 26. Nc5 {[%clk 0:01:22.9]} 26...
Rd2 {[%clk 0:01:25.2]} 27. Rad1 {[%clk 0:01:21.3]} 27... Rxc2 {[%clk 0:01:12.6]}
28. Rd6 {[%clk 0:01:04]} 28... Bxf3 {[%clk 0:01:07.9]} 29. Re2 {[%clk
0:00:40.2]} 29... Qxd6 {[%clk 0:00:38]} 30. Qxd6 {[%clk 0:00:38.6]} 30... Bxe2
{[%clk 0:00:38.5]} 31. Nxe2 {[%clk 0:00:22.5]} 31... Rxe2 {[%clk 0:00:39.4]} 32.
Qxa6 {[%clk 0:00:12.4]} 32... Rd8 {[%clk 0:00:33.9]} 33. Nd7 {[%clk 0:00:09.2]}
33... Nf4 {[%clk 0:00:15.1]} 34. Kg3 {[%clk 0:00:07.5]} 34... g5 {[%clk
0:00:14.4]} 35. Qxb5 {[%clk 0:00:04.8]} 35... Rxg2+ {[%clk 0:00:14.1]} 36. Kf3
{[%clk 0:00:05.1]} 36... Rd2 {[%clk 0:00:11]} 37. Ne5 {[%clk 0:00:03.4]} 37...
R2d5 {[%clk 0:00:08.7]} 38. Qb6 {[%clk 0:00:03]} 38... Rf8 {[%clk 0:00:08]} 39.
Nc6 {[%clk 0:00:02.7]} 39... Kg7 {[%clk 0:00:07.7]} 40. Ne7 {[%clk 0:00:01.3]}
40... Rd3+ {[%clk 0:00:08.1]} 41. Kf2 {[%clk 0:00:01.2]} 41... Rfd8 {[%clk
0:00:08.3]} 42. Nc6 {[%clk 0:00:01]} 42... Rd2+ {[%clk 0:00:08.5]} 43. Kf3
{[%clk 0:00:01.9]} 43... R8d3+ {[%clk 0:00:08.6]} 44. Ke4 {[%clk 0:00:02]} 44...
Re2+ {[%clk 0:00:09.5]} 0-1

[Event "*** SCC Grand Prix: Titled Tuesday Blitz"]
[Site "Chess.com"]
[Date "2020.08.11"]
[Round "7"]
[White "rugbyclub"]
[Black "Alindsay211"]
[Result "1-0"]
[WhiteElo "2190"]
[BlackElo "2315"]
[TimeControl "180+1"]
[EndTime "11:18:05 PDT"]
[Termination "rugbyclub won on time"]

1. c4 {[%clk 0:02:59.5]} 1... Nf6 {[%clk 0:02:52.5]} 2. Nc3 {[%clk 0:02:59.2]}
2... e5 {[%clk 0:02:48.1]} 3. g3 {[%clk 0:02:55.9]} 3... Nc6 {[%clk 0:02:47]} 4.
Bg2 {[%clk 0:02:55.5]} 4... d6 {[%clk 0:02:45.7]} 5. e3 {[%clk 0:02:48.4]} 5...
g6 {[%clk 0:02:45.3]} 6. Nge2 {[%clk 0:02:48.3]} 6... Bg7 {[%clk 0:02:43.8]} 7.
O-O {[%clk 0:02:48.9]} 7... O-O {[%clk 0:02:43.1]} 8. b3 {[%clk 0:02:49.2]} 8...
Bg4 {[%clk 0:02:40.1]} 9. Bb2 {[%clk 0:02:47.7]} 9... Qd7 {[%clk 0:02:37.1]} 10.
d4 {[%clk 0:02:38.1]} 10... Bxe2 {[%clk 0:02:34.9]} 11. Nxe2 {[%clk 0:02:35.8]}
11... Rab8 {[%clk 0:02:25.9]} 12. Nc3 {[%clk 0:02:33.1]} 12... Rfe8 {[%clk
0:02:24.7]} 13. d5 {[%clk 0:02:32.2]} 13... Ne7 {[%clk 0:02:23.9]} 14. e4 {[%clk
0:02:32]} 14... h6 {[%clk 0:02:19.7]} 15. b4 {[%clk 0:02:29.4]} 15... Nh7 {[%clk
0:02:18]} 16. c5 {[%clk 0:02:28]} 16... f5 {[%clk 0:02:15.3]} 17. f3 {[%clk
0:02:27.1]} 17... fxe4 {[%clk 0:02:14.2]} 18. fxe4 {[%clk 0:02:25.3]} 18... Rf8
{[%clk 0:02:13.8]} 19. Qd3 {[%clk 0:02:18.1]} 19... a6 {[%clk 0:02:09.8]} 20.
Rac1 {[%clk 0:02:15.9]} 20... Ng5 {[%clk 0:02:08.5]} 21. Rxf8+ {[%clk
0:02:10.1]} 21... Rxf8 {[%clk 0:02:05]} 22. Rf1 {[%clk 0:02:07.3]} 22... Rxf1+
{[%clk 0:01:35.9]} 23. Bxf1 {[%clk 0:02:01.9]} 23... h5 {[%clk 0:01:32.8]} 24.
Bc1 {[%clk 0:01:57]} 24... Nh3+ {[%clk 0:01:30.7]} 25. Bxh3 {[%clk 0:01:53.3]}
25... Qxh3 {[%clk 0:01:31.6]} 26. Qf3 {[%clk 0:01:47.6]} 26... Qg4 {[%clk
0:01:25.7]} 27. Qxg4 {[%clk 0:01:46.9]} 27... hxg4 {[%clk 0:01:26.6]} 28. Bg5
{[%clk 0:01:33.1]} 28... Kf7 {[%clk 0:01:21.1]} 29. Nd1 {[%clk 0:01:21.2]} 29...
Ng8 {[%clk 0:01:09]} 30. Bd8 {[%clk 0:01:14.8]} 30... dxc5 {[%clk 0:01:02.3]}
31. bxc5 {[%clk 0:01:13.3]} 31... c6 {[%clk 0:00:59.2]} 32. Ne3 {[%clk 0:01:09]}
32... Bf6 {[%clk 0:00:52.3]} 33. Bc7 {[%clk 0:00:59.7]} 33... Nh6 {[%clk
0:00:44.6]} 34. Nc4 {[%clk 0:00:59.3]} 34... cxd5 {[%clk 0:00:42.9]} 35. exd5
{[%clk 0:00:59]} 35... e4 {[%clk 0:00:42.9]} 36. Kf1 {[%clk 0:00:57]} 36... Bd4
{[%clk 0:00:42.3]} 37. Nd6+ {[%clk 0:00:54.9]} 37... Ke7 {[%clk 0:00:40.3]} 38.
Nxe4 {[%clk 0:00:55.1]} 38... Nf5 {[%clk 0:00:38.9]} 39. Bf4 {[%clk 0:00:48.7]}
39... b6 {[%clk 0:00:33.8]} 40. c6 {[%clk 0:00:45.7]} 40... Bc5 {[%clk
0:00:22.3]} 41. Ke2 {[%clk 0:00:44.4]} 41... Bg1 {[%clk 0:00:18.2]} 42. d6+
{[%clk 0:00:39.4]} 42... Kd8 {[%clk 0:00:17.4]} 43. Bg5+ {[%clk 0:00:34.2]}
43... Kc8 {[%clk 0:00:16.3]} 44. d7+ {[%clk 0:00:34.2]} 44... Kc7 {[%clk
0:00:14.8]} 45. d8=Q+ {[%clk 0:00:33.7]} 45... Kxc6 {[%clk 0:00:15.7]} 46. Qd1
{[%clk 0:00:27.3]} 1-0

[Event "*** SCC Grand Prix: Titled Tuesday Blitz"]
[Site "Chess.com"]
[Date "2020.08.11"]
[Round "7"]
[White "eightbyeightchess"]
[Black "Spriteball"]
[Result "1/2-1/2"]
[WhiteElo "2442"]
[BlackElo "2128"]
[TimeControl "180+1"]
[EndTime "11:18:07 PDT"]
[Termination "Game drawn by repetition"]

1. e4 {[%clk 0:03:00.9]} 1... c5 {[%clk 0:02:58]} 2. Nf3 {[%clk 0:03:00.5]} 2...
d6 {[%clk 0:02:58]} 3. d4 {[%clk 0:03:01]} 3... cxd4 {[%clk 0:02:58.9]} 4. Qxd4
{[%clk 0:03:01.5]} 4... Nc6 {[%clk 0:02:58.1]} 5. Bb5 {[%clk 0:03:01]} 5... Bd7
{[%clk 0:02:57.1]} 6. Bxc6 {[%clk 0:03:00.9]} 6... Bxc6 {[%clk 0:02:58]} 7. Nc3
{[%clk 0:03:01.3]} 7... Nf6 {[%clk 0:02:55.1]} 8. Bg5 {[%clk 0:02:59.9]} 8... e6
{[%clk 0:02:48.6]} 9. O-O-O {[%clk 0:02:56.7]} 9... Be7 {[%clk 0:02:46.8]} 10.
Qd3 {[%clk 0:02:56.8]} 10... Qa5 {[%clk 0:02:34.5]} 11. Kb1 {[%clk 0:02:54.9]}
11... O-O-O {[%clk 0:02:34]} 12. Bd2 {[%clk 0:02:50.7]} 12... Qh5 {[%clk
0:02:30.1]} 13. Nd4 {[%clk 0:02:50.2]} 13... Be8 {[%clk 0:02:20.2]} 14. f4
{[%clk 0:02:42.8]} 14... Kb8 {[%clk 0:02:14.1]} 15. f5 {[%clk 0:02:37.1]} 15...
Ng4 {[%clk 0:02:04]} 16. Qf3 {[%clk 0:02:22]} 16... e5 {[%clk 0:01:29.8]} 17.
Nde2 {[%clk 0:02:04.1]} 17... Bc6 {[%clk 0:01:22.1]} 18. h3 {[%clk 0:01:43.5]}
18... Nf6 {[%clk 0:01:19.9]} 19. g4 {[%clk 0:01:43.7]} 19... Qh4 {[%clk
0:01:19.3]} 20. Rdg1 {[%clk 0:01:29.9]} 20... h5 {[%clk 0:01:04.5]} 21. Be1
{[%clk 0:00:56.3]} 21... hxg4 {[%clk 0:00:59.5]} 22. hxg4 {[%clk 0:00:55.6]}
22... Qg5 {[%clk 0:00:57.4]} 23. Bd2 {[%clk 0:00:55.3]} 23... Qxd2 {[%clk
0:00:51.1]} 24. Rxh8 {[%clk 0:00:53.6]} 24... Rxh8 {[%clk 0:00:49.1]} 25. g5
{[%clk 0:00:54.5]} 25... Nd7 {[%clk 0:00:33.7]} 26. a3 {[%clk 0:00:52]} 26...
Nc5 {[%clk 0:00:30.9]} 27. g6 {[%clk 0:00:45.6]} 27... fxg6 {[%clk 0:00:29.8]}
28. Rxg6 {[%clk 0:00:42.9]} 28... Bf6 {[%clk 0:00:29]} 29. Rg1 {[%clk
0:00:33.7]} 29... Rh4 {[%clk 0:00:28.1]} 30. Rd1 {[%clk 0:00:32.5]} 30... Qg5
{[%clk 0:00:25.6]} 31. Rxd6 {[%clk 0:00:32.7]} 31... Nxe4 {[%clk 0:00:24.6]} 32.
Nxe4 {[%clk 0:00:28.9]} 32... Bxe4 {[%clk 0:00:23.8]} 33. Qb3 {[%clk 0:00:27.3]}
33... Rh1+ {[%clk 0:00:23.2]} 34. Ka2 {[%clk 0:00:27]} 34... Qg2 {[%clk
0:00:20.2]} 35. Qg8+ {[%clk 0:00:13.3]} 35... Kc7 {[%clk 0:00:20.1]} 36. Rd2
{[%clk 0:00:09.7]} 36... Re1 {[%clk 0:00:16.7]} 37. Qf7+ {[%clk 0:00:09.2]}
37... Kb8 {[%clk 0:00:14.6]} 38. Qe8+ {[%clk 0:00:07.3]} 38... Kc7 {[%clk
0:00:14.8]} 39. Qf7+ {[%clk 0:00:05.5]} 39... Kb6 {[%clk 0:00:14.6]} 40. Qe6+
{[%clk 0:00:05.2]} 40... Bc6 {[%clk 0:00:14.1]} 41. Qb3+ {[%clk 0:00:05.6]}
41... Kc7 {[%clk 0:00:13.9]} 42. Qf7+ {[%clk 0:00:06.2]} 42... Kb8 {[%clk
0:00:12.1]} 43. Qf8+ {[%clk 0:00:04.5]} 43... Kc7 {[%clk 0:00:12.3]} 44. Qd6+
{[%clk 0:00:04.7]} 44... Kc8 {[%clk 0:00:10.9]} 45. Nc3 {[%clk 0:00:04.7]} 45...
Qf3 {[%clk 0:00:09.1]} 46. Qe6+ {[%clk 0:00:03]} 46... Kc7 {[%clk 0:00:08.4]}
47. Qd6+ {[%clk 0:00:03.5]} 47... Kc8 {[%clk 0:00:08.6]} 48. Qe6+ {[%clk
0:00:03.7]} 48... Kc7 {[%clk 0:00:08.8]} 49. Qd6+ {[%clk 0:00:03.4]} 49... Kc8
{[%clk 0:00:09.2]} 1/2-1/2

[Event "*** SCC Grand Prix: Titled Tuesday Blitz"]
[Site "Chess.com"]
[Date "2020.08.11"]
[Round "7"]
[White "TokChess"]
[Black "AliKa2810"]
[Result "0-1"]
[WhiteElo "2400"]
[BlackElo "2605"]
[TimeControl "180+1"]
[EndTime "11:18:11 PDT"]
[Termination "AliKa2810 won by resignation"]

1. Nf3 {[%clk 0:03:00.9]} 1... Nf6 {[%clk 0:02:59.4]} 2. g3 {[%clk 0:03:01.3]}
2... g6 {[%clk 0:02:59.8]} 3. Bg2 {[%clk 0:03:01.5]} 3... Bg7 {[%clk 0:03:00.4]}
4. O-O {[%clk 0:03:02.1]} 4... O-O {[%clk 0:03:01]} 5. c4 {[%clk 0:03:02.4]}
5... c5 {[%clk 0:03:00.1]} 6. Nc3 {[%clk 0:03:02.6]} 6... d5 {[%clk 0:02:59.4]}
7. cxd5 {[%clk 0:03:02.1]} 7... Nxd5 {[%clk 0:03:00.3]} 8. Qb3 {[%clk 0:03:01]}
8... Nb6 {[%clk 0:02:51.3]} 9. d3 {[%clk 0:03:00.6]} 9... Nc6 {[%clk 0:02:40.8]}
10. Qb5 {[%clk 0:03:00.4]} 10... Bg4 {[%clk 0:02:25.2]} 11. Qxc5 {[%clk
0:02:51.2]} 11... Rc8 {[%clk 0:02:25.6]} 12. Qe3 {[%clk 0:02:05.1]} 12... Qd7
{[%clk 0:02:19.9]} 13. Rd1 {[%clk 0:02:00.7]} 13... Rfd8 {[%clk 0:02:16.7]} 14.
Qd2 {[%clk 0:01:50.9]} 14... e5 {[%clk 0:01:58.8]} 15. Qe1 {[%clk 0:01:29.6]}
15... Nd4 {[%clk 0:01:47.2]} 16. Nxd4 {[%clk 0:01:19.1]} 16... exd4 {[%clk
0:01:48.1]} 17. Ne4 {[%clk 0:01:18.7]} 17... Rc2 {[%clk 0:01:47.4]} 18. Bd2
{[%clk 0:00:54.4]} 18... Rxb2 {[%clk 0:01:38]} 19. Nc5 {[%clk 0:00:54.6]} 19...
Qe7 {[%clk 0:01:35.3]} 20. Nxb7 {[%clk 0:00:52.4]} 20... Rb8 {[%clk 0:01:30]}
21. Na5 {[%clk 0:00:52.6]} 21... Qxe2 {[%clk 0:01:14]} 22. Bf4 {[%clk
0:00:34.9]} 22... Re8 {[%clk 0:01:07.5]} 23. Bf1 {[%clk 0:00:22]} 23... Qe6
{[%clk 0:00:40]} 24. Qxe6 {[%clk 0:00:20.2]} 24... Rxe6 {[%clk 0:00:40.3]} 25.
Rdb1 {[%clk 0:00:19.7]} 25... Rxb1 {[%clk 0:00:35.9]} 26. Rxb1 {[%clk
0:00:20.2]} 26... h5 {[%clk 0:00:31.7]} 27. Nb7 {[%clk 0:00:19.9]} 27... Nd5
{[%clk 0:00:28.9]} 28. Bd2 {[%clk 0:00:19.3]} 28... Nc3 {[%clk 0:00:28.6]} 29.
Re1 {[%clk 0:00:17.4]} 29... Nxa2 {[%clk 0:00:24.3]} 30. Ra1 {[%clk 0:00:16]}
30... Nc3 {[%clk 0:00:15.3]} 31. Rxa7 {[%clk 0:00:15.6]} 31... Bf3 {[%clk
0:00:13.4]} 32. Ra1 {[%clk 0:00:14.4]} 32... Ne2+ {[%clk 0:00:12.8]} 33. Bxe2
{[%clk 0:00:14.4]} 33... Rxe2 {[%clk 0:00:13]} 34. Bf4 {[%clk 0:00:13.1]} 34...
Bxb7 {[%clk 0:00:13]} 35. Rb1 {[%clk 0:00:13.2]} 35... Bf3 {[%clk 0:00:13]} 36.
Rc1 {[%clk 0:00:13.3]} 36... Bf6 {[%clk 0:00:12.9]} 37. h4 {[%clk 0:00:13.6]}
37... Kg7 {[%clk 0:00:13.3]} 38. Rb1 {[%clk 0:00:13.5]} 38... Be7 {[%clk
0:00:11.1]} 39. Ra1 {[%clk 0:00:13.7]} 39... Bb4 {[%clk 0:00:11]} 40. Rc1 {[%clk
0:00:14.2]} 40... Bd2 {[%clk 0:00:11.2]} 41. Bxd2 {[%clk 0:00:14.4]} 41... Rxd2
{[%clk 0:00:12.1]} 42. Re1 {[%clk 0:00:14.6]} 42... Rd1 {[%clk 0:00:12.5]} 43.
Rxd1 {[%clk 0:00:14.8]} 43... Bxd1 {[%clk 0:00:13.4]} 44. Kf1 {[%clk 0:00:15.4]}
44... Kf6 {[%clk 0:00:13]} 45. Ke1 {[%clk 0:00:15.8]} 45... Ba4 {[%clk
0:00:12.9]} 46. f3 {[%clk 0:00:15.8]} 46... Kf5 {[%clk 0:00:13.3]} 47. Ke2
{[%clk 0:00:16.2]} 47... Bc6 {[%clk 0:00:13.1]} 48. Kd2 {[%clk 0:00:16.6]} 48...
g5 {[%clk 0:00:13.3]} 49. hxg5 {[%clk 0:00:16.5]} 49... Kxg5 {[%clk 0:00:13.8]}
50. Ke2 {[%clk 0:00:17]} 50... f5 {[%clk 0:00:14.3]} 51. Kf2 {[%clk 0:00:16.7]}
51... f4 {[%clk 0:00:14.8]} 52. Kg2 {[%clk 0:00:16.9]} 52... Bb5 {[%clk
0:00:14.3]} 53. Kh3 {[%clk 0:00:15.6]} 53... Bxd3 {[%clk 0:00:14.3]} 0-1